bitfinex-derivatives/quotes_BTCF0:USTF0_20251120
["timestamp","ask_amount","ask_price","bid_price","bid_amount"]
[1763680052876,0.41556,87755.0,87754.0,0.0114091]
[1763680053077,0.426969,87755.0,87754.0,0.01360713]
[1763680053262,0.41556,87755.0,87754.0,0.03326713]
[1763680053467,0.41556,87755.0,87754.0,0.00219803]
[1763680054476,0.07054,87744.0,87743.0,0.3722106]
[1763680054676,0.41556,87755.0,87754.0,0.0310691]
[1763680054873,0.41556,87755.0,87754.0,0.03326713]
[1763680055478,0.41556,87755.0,87754.0,0.01360713]
[1763680055870,0.426969,87755.0,87754.0,0.00219803]
[1763680056180,0.05476,87749.0,87748.0,0.0212399]
[1763680056482,0.05476,87749.0,87748.0,0.02343793]
[1763680056774,0.01619,87756.0,87755.0,0.01966]
[1763680056972,0.41556,87764.0,87763.0,0.031068]
[1763680057276,0.41556,87764.0,87763.0,0.03326603]
[1763680057777,4e-08,87766.0,87765.0,0.01966]
[1763680057969,0.3608,87785.0,87784.0,0.01966]
[1763680058166,0.41556,87785.0,87784.0,0.02185803]
[1763680059078,0.41556,87785.0,87784.0,0.00219803]
[1763680059374,0.05476,87785.0,87784.0,0.00219803]
[1763680059577,0.05576,87785.0,87784.0,0.00219803]
[1763680060272,0.0671651,87785.0,87784.0,0.00219803]
[1763680060870,0.05576,87785.0,87784.0,0.00219803]
[1763680061067,0.001,87785.0,87784.0,0.38265803]
[1763680061268,0.05576,87785.0,87784.0,0.00219803]
[1763680061579,0.05476,87777.0,87776.0,0.00017095]
[1763680062567,0.05476,87762.0,87761.0,0.1106]
[1763680062772,0.05476,87762.0,87761.0,0.11279803]
[1763680063871,0.04075283,87764.0,87763.0,0.01966]
[1763680064071,0.07690924,87768.0,87766.0,0.0114076]
[1763680064072,0.01578,87768.0,87766.0,0.0114076]
[1763680064271,0.05476,87767.0,87766.0,0.0114076]
[1763680064471,0.05476,87767.0,87766.0,0.01360563]
[1763680064879,0.11588924,87767.0,87766.0,0.01360563]
[1763680065083,0.05476,87767.0,87766.0,0.01360563]
[1763680065474,0.11588924,87767.0,87766.0,0.01360563]
[1763680065670,0.05476,87767.0,87766.0,0.01360563]
[1763680066077,0.14824612,87767.0,87766.0,0.01360563]
[1763680066274,0.05476,87767.0,87766.0,0.00219803]
[1763680068991,0.1465216,87767.0,87766.0,0.00219803]
[1763680069196,0.05476,87767.0,87766.0,0.00219803]
[1763680069796,0.01578,87768.0,87767.0,0.0310674]
[1763680069996,0.08894962,87769.0,87768.0,0.01966]
[1763680070287,0.00017095,87770.0,87769.0,0.0310672]
[1763680070492,0.06146786,87770.0,87769.0,0.03326523]
[1763680070680,0.00017095,87770.0,87769.0,0.03326523]
[1763680071083,0.04086766,87772.0,87771.0,0.01966]
[1763680071290,0.04086766,87773.0,87772.0,0.0310668]
[1763680071496,0.06129691,87777.0,87776.0,0.0310663]
[1763680071696,0.08910672,87785.0,87784.0,0.0114052]
[1763680071887,0.05476,87795.0,87794.0,0.00219803]
[1763680072389,0.05476,87795.0,87794.0,0.01202803]
[1763680072589,0.05476,87795.0,87794.0,0.02185803]
[1763680072790,0.09270505,87798.0,87794.0,0.02185803]
[1763680072791,0.09270505,87798.0,87797.0,0.01966]
[1763680072992,0.0429,87802.0,87798.0,0.0114034]
[1763680073189,0.0429,87802.0,87800.0,0.00219803]
[1763680073390,0.05476,87787.0,87780.0,0.01]
[1763680073594,0.05476,87787.0,87771.0,0.3608]
[1763680073595,0.05476,87787.0,87771.0,0.4714]
[1763680073988,0.3608,87789.0,87788.0,0.01966]
[1763680074186,0.4269646,87789.0,87788.0,0.00219803]
[1763680074399,0.05476,87787.0,87786.0,0.00017095]
[1763680074794,0.05476,87787.0,87786.0,0.00236898]
[1763680075201,0.05476,87787.0,87771.0,0.3608]
[1763680075202,0.0661668,87772.0,87771.0,0.3608]
[1763680075398,0.05476,87754.0,87753.0,0.3608]
[1763680075590,0.05695803,87754.0,87753.0,0.36151611]
[1763680075895,0.05695803,87754.0,87753.0,0.38591611]
[1763680076099,0.05695803,87754.0,87753.0,0.02511611]
[1763680077594,0.00219803,87754.0,87753.0,0.02511611]
[1763680077801,0.05695803,87754.0,87753.0,0.00071611]
[1763680078101,0.05695803,87754.0,87753.0,0.02511611]
[1763680078293,0.05695803,87754.0,87753.0,0.00071611]
[1763680078496,0.05476,87751.0,87750.0,0.1106]
[1763680078697,0.41775803,87751.0,87736.0,0.00010537]
[1763680078908,0.3608,87743.0,87742.0,0.0244]
[1763680079198,0.00219803,87743.0,87742.0,0.02511611]
[1763680079396,0.05695803,87743.0,87742.0,0.00071611]
[1763680079596,0.0661713,87737.0,87736.0,0.00010537]
[1763680079893,0.00219803,87737.0,87736.0,0.02522148]
[1763680080698,0.01485126,87743.0,87742.0,0.0244]
[1763680080889,0.05695803,87743.0,87742.0,0.00071611]
[1763680081090,0.05695803,87743.0,87736.0,0.00010537]
[1763680081091,0.0661713,87737.0,87736.0,0.00010537]
[1763680081289,0.42916933,87737.0,87736.0,0.00010537]
[1763680081892,0.42916933,87737.0,87706.0,0.03065235]
[1763680081893,0.05476,87713.0,87699.0,0.03065235]
[1763680082102,0.05695803,87713.0,87712.0,0.36151611]
[1763680082293,0.05695803,87713.0,87696.0,0.1106]
[1763680082294,0.0114155,87705.0,87704.0,0.3608]
[1763680082602,0.05356,87697.0,87696.0,0.11131611]
[1763680082792,0.05575803,87697.0,87696.0,0.11915611]
[1763680082988,0.05584186,87697.0,87695.0,0.27727611]
[1763680083203,0.05356,87674.0,87673.0,0.3608]
[1763680083392,0.48687,87696.0,87681.0,0.0620486]
[1763680083393,0.00017104,87682.0,87681.0,0.0620486]
[1763680083592,0.00236907,87682.0,87681.0,0.0620486]
[1763680084192,0.00236907,87682.0,87673.0,0.41143]
[1763680084393,0.00236907,87682.0,87673.0,0.3722196]
[1763680084394,0.05356,87674.0,87673.0,0.3722196]
[1763680084604,0.00219803,87674.0,87673.0,0.4228496]
[1763680085101,0.05575803,87674.0,87666.0,0.3608]
[1763680085401,0.05356,87667.0,87666.0,0.3608]
[1763680085608,0.05575803,87667.0,87666.0,0.3722206]
[1763680085799,0.03004803,87667.0,87666.0,0.4228506]
[1763680086103,0.05575803,87667.0,87666.0,0.0114206]
[1763680086303,0.05356,87661.0,87660.0,0.0114212]
[1763680086498,0.02785,87654.0,87653.0,0.0114222]
[1763680086700,0.00219803,87654.0,87653.0,0.0620522]
[1763680087295,0.00219803,87654.0,87640.0,0.01]
[1763680087296,0.05356,87650.0,87640.0,0.01]
[1763680087495,0.05575803,87650.0,87635.0,0.0114245]
[1763680087702,0.05575803,87650.0,87646.0,0.0114231]
[1763680088004,0.00219803,87650.0,87649.0,0.05070984]
[1763680088391,0.05575803,87650.0,87649.0,7.984e-05]
[1763680088701,0.03004803,87650.0,87649.0,0.05070984]
[1763680088895,0.00219803,87650.0,87649.0,0.05070984]
[1763680090000,0.03004803,87650.0,87649.0,0.05070984]
[1763680090505,0.05575803,87650.0,87649.0,7.984e-05]
[1763680091095,0.05575803,87650.0,87649.0,0.02540984]
[1763680091298,0.00219803,87650.0,87649.0,0.05070984]
[1763680091901,4e-08,87662.0,87661.0,0.0620512]
[1763680092099,0.3608,87687.0,87676.0,0.0114192]
[1763680092405,0.00219803,87677.0,87676.0,0.0620492]
[1763680094007,0.00017104,87685.0,87676.0,0.0620492]
[1763680094008,0.00017104,87685.0,87684.0,0.0620482]
[1763680094201,0.00236907,87685.0,87684.0,0.0620482]
[1763680094802,4e-08,87685.0,87684.0,0.0620482]
[1763680095001,0.3608,87695.0,87694.0,0.0620469]
[1763680095200,0.36299803,87695.0,87694.0,0.0620469]
[1763680095497,0.00219803,87695.0,87694.0,0.0620469]
[1763680095693,0.37607145,87703.0,87702.0,0.05063]
[1763680095995,0.37826948,87703.0,87702.0,0.05063]
[1763680096194,0.40611948,87703.0,87702.0,0.05063]
[1763680097511,0.40611948,87703.0,87702.0,0.0620459]
[1763680098497,0.00017104,87711.0,87710.0,0.0620448]
[1763680098697,0.00236907,87711.0,87710.0,0.05063]
[1763680099908,0.00017104,87711.0,87710.0,0.05063]
[1763680100110,0.0114116,87736.0,87725.0,0.0114128]
[1763680100304,0.0114116,87736.0,87723.0,0.05063]
[1763680100305,0.00219803,87724.0,87723.0,0.05063]
[1763680100804,0.05356,87720.0,87719.0,0.3722135]
[1763680101013,0.05575803,87720.0,87719.0,0.3975435]
[1763680101310,0.03004803,87720.0,87719.0,0.0620435]
[1763680101515,0.00219803,87720.0,87719.0,0.0620435]
[1763680101810,0.05356,87712.0,87711.0,0.00017104]
[1763680102005,0.00219803,87712.0,87711.0,0.07807574]
[1763680102315,0.00219803,87712.0,87711.0,0.06666104]
[1763680102707,0.00219803,87712.0,87711.0,0.07807574]
[1763680103207,0.41436,87724.0,87723.0,0.0114132]
[1763680103410,0.41655803,87724.0,87723.0,0.0114132]
[1763680103810,0.36299803,87724.0,87723.0,0.0620432]
[1763680104418,0.00017104,87728.0,87727.0,0.0620426]
[1763680104625,0.09070688,87737.0,87736.0,0.0620415]
[1763680104913,0.3608,87746.0,87736.0,0.0620415]
[1763680104914,0.3608,87746.0,87745.0,0.0620403]
[1763680105212,0.36299803,87746.0,87745.0,0.0620403]
[1763680105801,0.3608,87746.0,87745.0,0.0620403]
[1763680106005,0.00017104,87754.0,87753.0,0.0620393]
[1763680106209,0.00236907,87754.0,87753.0,0.0620393]
[1763680107909,0.00236907,87754.0,87753.0,0.05063]
[1763680110414,0.00017104,87754.0,87753.0,0.05063]
[1763680110610,0.3608,87763.0,87762.0,0.0613881]
[1763680110810,0.3608,87779.0,87776.0,0.02445]
[1763680111115,0.04862,87761.0,87760.0,0.01]
[1763680111316,0.0114084,87760.0,87749.0,0.1108]
[1763680111524,0.00219803,87750.0,87749.0,0.1713098]
[1763680111721,0.04862,87763.0,87762.0,0.0114081]
[1763680111922,0.05081803,87763.0,87762.0,0.0114081]
[1763680112219,0.06222603,87763.0,87762.0,0.02445]
[1763680112417,0.0114081,87762.0,87754.0,0.0114091]
[1763680112611,0.00219803,87755.0,87754.0,0.0575191]
[1763680113607,0.02707803,87755.0,87754.0,0.04611]
[1763680113815,0.02707803,87755.0,87739.0,0.1108]
[1763680113816,0.00219803,87755.0,87739.0,0.1108]
[1763680114020,0.04933,87742.0,87739.0,0.1108]
[1763680114218,0.05152803,87742.0,87739.0,0.1108]
[1763680114422,0.05152803,87742.0,87733.0,0.3608]
[1763680114623,0.05152803,87742.0,87741.0,0.02301095]
[1763680114814,0.02707803,87742.0,87741.0,0.04628095]
[1763680115222,0.00219803,87742.0,87741.0,0.04628095]
[1763680115423,0.05152803,87742.0,87741.0,0.00017095]
[1763680116316,0.00219803,87742.0,87741.0,0.04628095]
[1763680116514,0.36299803,87742.0,87741.0,0.05769175]
[1763680117415,0.41232803,87742.0,87741.0,0.03442175]
[1763680117819,0.38787803,87742.0,87741.0,0.05769175]
[1763680118610,0.41232803,87742.0,87741.0,0.00017095]
[1763680118811,0.41232803,87742.0,87719.0,0.0114137]
[1763680118812,0.04933,87720.0,87719.0,0.0114137]
[1763680119016,0.04933,87717.0,87716.0,0.0114141]
[1763680119220,0.04933,87717.0,87716.0,0.0575241]
[1763680119221,0.00219803,87717.0,87716.0,0.0575241]
[1763680119415,0.3608,87724.0,87723.0,0.0575232]
[1763680119615,0.41232803,87724.0,87723.0,0.0114132]
[1763680119818,0.04933,87721.0,87720.0,0.0114135]
[1763680120019,0.05152803,87721.0,87720.0,0.0342535]
[1763680120616,0.00219803,87721.0,87720.0,0.0714235]
[1763680121622,0.00017095,87729.0,87728.0,0.0114125]
[1763680121818,0.00017095,87729.0,87728.0,0.0575225]
[1763680122218,0.04031693,87751.0,87741.0,0.0575208]
[1763680122426,0.36299803,87742.0,87741.0,0.0575208]
[1763680123126,0.36299803,87742.0,87741.0,0.01309478]
[1763680123424,0.04933,87737.0,87733.0,0.00017095]
[1763680123624,0.00219803,87734.0,87733.0,0.05769285]
[1763680126524,0.05152803,87734.0,87733.0,0.05769285]
[1763680128131,0.05152803,87734.0,87733.0,0.00017095]
[1763680128524,0.05152803,87734.0,87733.0,0.04628095]
[1763680130627,0.05152803,87734.0,87733.0,0.00017095]
[1763680130816,0.05152803,87734.0,87733.0,9.5e-07]
[1763680130817,0.41232803,87734.0,87733.0,9.5e-07]
[1763680131023,0.0607433,87722.0,87721.0,0.11072]
[1763680131222,0.0607433,87722.0,87711.0,0.00012851]
[1763680131223,0.0607446,87712.0,87711.0,0.00012851]
[1763680131423,0.05152803,87712.0,87711.0,0.00012851]
[1763680132023,0.00219803,87712.0,87711.0,0.04623851]
[1763680132224,0.04071668,87718.0,87717.0,0.0575239]
[1763680132528,0.00017095,87720.0,87719.0,0.04611]
[1763680132730,0.04071668,87729.0,87727.0,0.04611]
[1763680132924,0.04071668,87731.0,87729.0,0.04611]
[1763680133124,0.00219803,87731.0,87730.0,0.04611]
[1763680133328,0.04071668,87738.0,87736.0,0.0575215]
[1763680133530,0.00219803,87738.0,87737.0,0.04611]
[1763680133729,0.02707803,87738.0,87737.0,0.04611]
[1763680133931,0.05152803,87738.0,87737.0,0.02284]
[1763680134129,0.04933,87737.0,87736.0,0.0114115]
[1763680134328,0.02488,87734.0,87733.0,0.3608]
[1763680134530,0.06293973,87734.0,87733.0,0.3608]
[1763680134923,0.05152803,87734.0,87733.0,0.3608]
[1763680135130,0.04933,87730.0,87729.0,0.00017095]
[1763680135329,0.05152803,87730.0,87729.0,0.00017095]
[1763680136137,0.05152803,87730.0,87729.0,0.02301095]
[1763680136433,0.05152803,87730.0,87729.0,0.04628095]
[1763680136434,0.00219803,87730.0,87729.0,0.04628095]
[1763680137029,0.00219803,87730.0,87729.0,0.00017095]
[1763680137030,0.05152803,87730.0,87729.0,0.00017095]
[1763680139135,0.41232803,87730.0,87729.0,0.00017095]
[1763680140932,0.36299803,87730.0,87729.0,0.04628095]
[1763680141626,0.00219803,87730.0,87729.0,0.04628095]
[1763680141831,0.04073154,87736.0,87729.0,0.04628095]
[1763680142031,0.04073154,87740.0,87739.0,0.04611]
[1763680142230,0.00219803,87740.0,87739.0,0.04611]
[1763680143741,0.04073154,87743.0,87742.0,0.0581207]
[1763680143932,0.04073154,87744.0,87743.0,0.04671]
[1763680144126,0.3608,87749.0,87745.0,0.04671]
[1763680144529,0.00236898,87746.0,87745.0,0.04671]
[1763680146833,0.02528898,87746.0,87745.0,0.04671]
[1763680147040,0.00236898,87746.0,87745.0,0.04671]
[1763680147238,0.00017095,87746.0,87745.0,0.04671]
[1763680147445,0.40153154,87750.0,87743.0,0.3722105]
[1763680147446,0.3608,87750.0,87749.0,0.0581198]
[1763680148342,0.04073154,87757.0,87756.0,0.0581189]
[1763680148547,0.08176429,87771.0,87756.0,0.0581189]
[1763680148548,1e-08,87774.0,87764.0,0.0114078]
[1763680148844,0.01369,87791.0,87790.0,0.0114044]
[1763680149046,0.06230267,87791.0,87790.0,0.47367803]
[1763680149642,0.04788,87780.0,87779.0,0.3608]
[1763680149846,0.05007803,87780.0,87779.0,0.3608]
[1763680150035,0.0592868,87772.0,87771.0,0.3608]
[1763680150240,0.06148483,87772.0,87771.0,0.3608]
[1763680150943,0.05007803,87772.0,87771.0,0.3608]
[1763680153438,0.05007803,87772.0,87763.0,0.11081095]
[1763680153439,0.0592878,87764.0,87763.0,0.00017095]
[1763680153644,0.0592903,87745.0,87744.0,0.11064]
[1763680153854,0.05007803,87745.0,87744.0,0.11064]
[1763680154050,0.3608,87765.0,87744.0,0.11064]
[1763680154051,0.3608,87765.0,87744.0,0.15735]
[1763680154352,0.0114054,87783.0,87744.0,0.15735]
[1763680154353,0.0114083,87761.0,87755.0,0.3608]
[1763680154560,0.00219803,87756.0,87755.0,0.40751]
[1763680154758,0.01369,87763.0,87755.0,0.3608]
[1763680155057,0.00017095,87764.0,87761.0,0.0114081]
[1763680155254,0.00017095,87764.0,87763.0,0.3608]
[1763680155555,0.00236898,87764.0,87763.0,0.3608]
[1763680155759,0.05024898,87764.0,87763.0,0.3608]
[1763680158058,0.05024898,87764.0,87763.0,0.38455]
[1763680158362,0.02528898,87764.0,87763.0,0.38455]
[1763680159253,0.05024898,87764.0,87763.0,0.38455]
[1763680159650,0.04805095,87764.0,87763.0,0.418918]
[1763680159852,0.09316949,87785.0,87778.0,0.0114059]
[1763680160057,0.09316949,87785.0,87770.0,0.01]
[1763680160058,0.04788,87777.0,87776.0,0.3608]
[1763680160257,0.05007803,87777.0,87776.0,0.3608]
[1763680160855,0.0592868,87772.0,87771.0,0.11064]
[1763680161060,0.06148483,87772.0,87771.0,0.47144]
[1763680163667,0.00219803,87772.0,87771.0,0.5295569]
[1763680164861,0.01369,87789.0,87780.0,0.01]
[1763680165061,0.0114053,87784.0,87783.0,0.04671]
[1763680165361,0.0114053,87784.0,87771.0,0.4828469]
[1763680165362,0.0114064,87776.0,87775.0,0.04671]
[1763680165568,0.02292,87772.0,87771.0,0.47144]
[1763680165766,0.02511803,87772.0,87771.0,0.51815]
[1763680165969,0.00219803,87772.0,87771.0,0.51815]
[1763680166164,0.0114062,87777.0,87776.0,0.04671]
[1763680166369,0.0114062,87777.0,87771.0,0.47144]
[1763680166370,0.02292,87779.0,87778.0,0.02375]
[1763680166566,0.02511803,87779.0,87778.0,0.02375]
[1763680166870,0.06148393,87779.0,87778.0,0.02375]
[1763680167163,0.0114068,87772.0,87771.0,0.51815]
[1763680167367,0.01360483,87772.0,87771.0,0.51815]
[1763680167871,0.06148483,87772.0,87771.0,0.47144]
[1763680168568,0.05007803,87772.0,87771.0,0.47144]
[1763680168775,0.05007803,87772.0,87771.0,0.51815]
[1763680168963,0.00219803,87772.0,87771.0,0.51815]
[1763680169162,0.02511803,87772.0,87771.0,0.51815]
[1763680169472,0.05007803,87772.0,87771.0,0.47144]
[1763680169866,0.06148483,87772.0,87771.0,0.47144]
[1763680172666,0.06148483,87772.0,87771.0,0.4828469]
[1763680173475,0.06148483,87772.0,87771.0,0.47144]
[1763680173774,0.06148483,87772.0,87771.0,0.4828469]
[1763680175374,0.12245424,87772.0,87771.0,0.5093469]
[1763680175574,0.12245424,87772.0,87771.0,0.3873]
[1763680175772,0.07457424,87772.0,87771.0,0.3873]
[1763680176074,0.07457424,87772.0,87771.0,0.41321]
[1763680176075,0.00219803,87772.0,87771.0,0.41321]
[1763680176876,0.00147003,87772.0,87771.0,0.413938]
[1763680177067,0.05101,87781.0,87780.0,0.0379057]
[1763680177269,0.05320803,87781.0,87780.0,0.0386337]
[1763680177473,0.11417744,87781.0,87780.0,0.0386337]
[1763680178069,0.05320803,87781.0,87780.0,0.0386337]
[1763680179369,0.05420803,87781.0,87780.0,0.0386337]
[1763680179563,0.05420803,87781.0,87780.0,0.0645437]
[1763680179764,0.00319803,87781.0,87780.0,0.0645437]
[1763680182080,0.02783803,87781.0,87780.0,0.0645437]
[1763680182769,0.06561363,87781.0,87780.0,0.000728]
[1763680183078,0.06561363,87781.0,87780.0,0.027228]
[1763680184172,0.06461363,87781.0,87780.0,0.000728]
[1763680184374,0.0624168,87772.0,87771.0,0.3608]
[1763680184568,0.06461483,87772.0,87771.0,0.361528]
[1763680186068,0.06461483,87772.0,87771.0,0.000728]
[1763680186271,0.0624178,87764.0,87763.0,0.02667095]
[1763680186469,0.06461583,87764.0,87763.0,0.11149895]
[1763680188069,0.14638012,87764.0,87763.0,0.11077095]
[1763680188270,0.06461583,87764.0,87763.0,0.11077095]
[1763680188476,0.06461583,87764.0,87763.0,0.00017095]
[1763680188970,0.06461583,87764.0,87763.0,0.05258095]
[1763680189170,0.06561583,87764.0,87763.0,0.00017095]
[1763680189366,0.14711742,87764.0,87763.0,0.00089895]
[1763680189973,0.14711742,87764.0,87763.0,0.02739895]
[1763680190175,0.05420803,87764.0,87763.0,0.05330895]
[1763680190579,0.05320803,87764.0,87763.0,0.05330895]
[1763680190880,0.05420803,87764.0,87763.0,0.05330895]
[1763680191275,0.05420803,87764.0,87763.0,0.00017095]
[1763680191582,0.05101,87754.0,87753.0,0.0638192]
[1763680191772,0.05101,87754.0,87753.0,0.0645472]
[1763680191773,0.05320803,87754.0,87753.0,0.0645472]
[1763680191972,0.11429982,87754.0,87753.0,0.0645472]
[1763680192480,0.05320803,87754.0,87753.0,0.0645472]
[1763680193277,0.11429982,87754.0,87753.0,0.000728]
[1763680194481,0.14589569,87754.0,87753.0,0.000728]
[1763680194882,0.05101,87746.0,87745.0,0.05258095]
[1763680195078,0.05320803,87746.0,87745.0,0.05330895]
[1763680195380,0.05320803,87746.0,87745.0,0.00089895]
[1763680195883,0.05320803,87746.0,87745.0,0.00017095]
[1763680196274,0.0624234,87721.0,87720.0,0.3608]
[1763680196469,0.0624245,87713.0,87712.0,0.3608]
[1763680196675,0.05101,87712.0,87711.0,0.00012851]
[1763680196874,0.05320803,87712.0,87711.0,0.00012851]
[1763680197074,0.05101,87696.0,87695.0,0.3873]
[1763680197378,0.00219803,87696.0,87695.0,0.4253548]
[1763680197584,0.05320803,87696.0,87695.0,0.4253548]
[1763680198180,0.01621781,87696.0,87695.0,0.4253548]
[1763680199176,0.01401978,87696.0,87695.0,0.4253548]
[1763680199380,1.05e-06,87704.0,87703.0,0.0798358]
[1763680199682,0.05101,87724.0,87723.0,0.05241]
[1763680199873,0.05320803,87724.0,87723.0,0.0265]
[1763680200071,0.02464,87718.0,87717.0,0.41321]
[1763680200274,0.02464,87718.0,87717.0,0.4253519]
[1763680200275,0.00219803,87718.0,87717.0,0.4253519]
[1763680200470,0.01356666,87724.0,87723.0,0.0638232]
[1763680200772,0.05320803,87724.0,87723.0,0.027228]
[1763680200974,0.02464,87718.0,87717.0,0.41321]
[1763680201181,0.3608,87748.0,87747.0,0.05169]
[1763680201377,0.47278494,87762.0,87761.0,0.04028]
[1763680201686,0.05320803,87762.0,87761.0,0.020868]
[1763680203385,0.05340803,87770.0,87769.0,0.000728]
[1763680203983,0.06731607,87770.0,87769.0,0.000728]
[1763680204390,0.06731607,87770.0,87763.0,0.3608]
[1763680204391,0.05121,87764.0,87755.0,0.3608]
[1763680204591,0.05121,87764.0,87756.0,0.000728]
[1763680204785,0.02730803,87757.0,87756.0,0.000728]
[1763680205091,0.00219803,87757.0,87756.0,0.028468]
[1763680205587,0.02730803,87757.0,87756.0,0.028468]
[1763680205790,0.05340803,87757.0,87756.0,0.028468]
[1763680206894,0.06481673,87757.0,87756.0,0.000728]
[1763680207090,0.0626191,87754.0,87753.0,0.00017095]
[1763680207385,0.06481713,87754.0,87753.0,0.00089895]
[1763680208085,0.06481713,87754.0,87753.0,0.00017095]
[1763680208890,0.06481713,87754.0,87745.0,0.3608]
[1763680208891,0.0626202,87746.0,87745.0,0.3608]
[1763680209192,0.0626202,87746.0,87735.0,0.0114116]
[1763680209193,0.05121,87736.0,87735.0,0.0114116]
[1763680209390,0.05340803,87736.0,87735.0,0.0121396]
[1763680209594,0.05340803,87736.0,87735.0,0.000728]
[1763680209890,0.05340803,87736.0,87735.0,0.0121396]
[1763680210095,0.05340803,87736.0,87735.0,0.0398796]
[1763680210298,0.00219803,87736.0,87735.0,0.0398796]
[1763680210492,0.06543075,87744.0,87743.0,0.0391506]
[1763680210809,0.00236878,87744.0,87743.0,0.0398786]
[1763680211296,0.00017075,87744.0,87743.0,0.0398786]
[1763680211594,0.06097494,87767.0,87764.0,0.02774]
[1763680211791,0.06097494,87767.0,87766.0,0.028468]
[1763680211792,0.05121,87767.0,87766.0,0.028468]
[1763680211993,0.05340803,87767.0,87766.0,0.028468]
[1763680212490,0.05340803,87767.0,87766.0,0.000728]
[1763680213294,0.05440803,87767.0,87766.0,0.000728]
[1763680213597,0.02830803,87767.0,87766.0,0.028468]
[1763680213783,0.00319803,87767.0,87766.0,0.028468]
[1763680214290,0.00319803,87767.0,87766.0,0.000728]
[1763680214291,0.05440803,87767.0,87766.0,0.000728]
[1763680215896,0.0626181,87762.0,87761.0,0.3608]
[1763680216199,0.05340803,87762.0,87761.0,0.361528]
[1763680217998,0.05121,87759.0,87758.0,0.00017095]
[1763680218195,0.05340803,87759.0,87758.0,9.5e-07]
[1763680218394,0.06526,87756.0,87755.0,0.3608]
[1763680218595,0.06745803,87756.0,87755.0,0.3608]
[1763680219798,0.06845803,87756.0,87755.0,0.3608]
[1763680219999,0.06845803,87756.0,87755.0,0.372209]
[1763680220197,0.06845803,87756.0,87755.0,0.372937]
[1763680220705,0.00319803,87756.0,87755.0,0.401017]
[1763680221098,0.001,87756.0,87755.0,0.401017]
[1763680221596,0.00319803,87756.0,87755.0,0.401017]
[1763680221799,0.04235803,87756.0,87755.0,0.401017]
[1763680222001,0.01724803,87756.0,87755.0,0.401017]
[1763680222296,0.01724803,87756.0,87755.0,0.386977]
[1763680222297,0.01624803,87756.0,87755.0,0.386977]
[1763680222504,0.01624803,87756.0,87755.0,0.401017]
[1763680222696,0.05138095,87764.0,87763.0,0.011408]
[1763680222997,0.06498678,87764.0,87763.0,0.000728]
[1763680224098,0.0766689,87756.0,87755.0,0.3608]
[1763680224306,0.07886693,87756.0,87755.0,0.361528]
[1763680225104,0.07886693,87756.0,87740.0,0.1106]
[1763680225105,0.0626199,87748.0,87740.0,0.1106]
[1763680225303,0.06481793,87748.0,87740.0,0.01]
[1763680225609,0.0626215,87736.0,87735.0,0.3608]
[1763680225901,0.0626232,87723.0,87722.0,0.3608]
[1763680226095,0.06482123,87723.0,87722.0,0.3608]
[1763680226521,0.06482123,87723.0,87714.0,0.00017095]
[1763680226522,0.0114142,87715.0,87714.0,0.00017095]
[1763680226810,0.0114142,87715.0,87694.0,0.3608]
[1763680226811,0.0626268,87695.0,87694.0,0.3608]
[1763680227001,0.0626268,87695.0,87686.0,0.3608]
[1763680227002,0.02511,87687.0,87686.0,0.011418]
[1763680227304,0.06081375,87704.0,87700.0,0.01]
[1763680227512,0.05121,87704.0,87703.0,0.000728]
[1763680227810,0.05349478,87704.0,87703.0,0.000728]
[1763680227992,0.05349478,87704.0,87695.0,0.00017105]
[1763680228192,0.05121,87703.0,87698.0,0.0114164]
[1763680228403,0.05340803,87699.0,87698.0,0.025168]
[1763680228615,8.675e-05,87704.0,87703.0,0.02444]
[1763680228798,0.14184972,87717.0,87711.0,0.00351]
[1763680229001,0.10111826,87728.0,87703.0,0.872168]
[1763680229002,0.02327472,87732.0,87731.0,0.0114121]
[1763680229192,0.08107296,87743.0,87741.0,0.0114108]
[1763680229395,0.10111826,87753.0,87748.0,0.0114098]
[1763680229703,0.00219803,87753.0,87752.0,0.000728]
[1763680229908,0.00227483,87753.0,87752.0,0.000728]
[1763680230204,7.68e-05,87753.0,87752.0,0.722328]
[1763680230606,0.00017094,87759.0,87753.0,0.0114093]
[1763680230900,0.00017094,87759.0,87758.0,0.000728]
[1763680231201,0.00236897,87759.0,87758.0,0.000728]
[1763680233998,0.00236897,87759.0,87758.0,0.0121366]
[1763680234197,0.00017094,87759.0,87758.0,0.0121366]
[1763680234602,0.01405,87776.0,87775.0,0.0114064]
[1763680234805,0.01624803,87776.0,87775.0,0.0121344]
[1763680235604,0.01405,87789.0,87785.0,0.0114051]
[1763680235905,0.00219803,87788.0,87785.0,0.1221651]
[1763680236099,0.00219803,87788.0,87787.0,0.361528]
[1763680237301,0.05530803,87788.0,87787.0,0.361528]
[1763680237706,0.05530803,87788.0,87787.0,0.3608]
[1763680237911,0.05311,87775.0,87774.0,0.3608]
[1763680238111,0.05530803,87775.0,87774.0,0.361528]
[1763680238298,0.05530803,87775.0,87774.0,0.472248]
[1763680238496,0.05530803,87775.0,87774.0,0.361528]
[1763680238695,0.05311,87768.0,87763.0,0.3608]
[1763680238908,0.05530803,87768.0,87767.0,0.11161894]
[1763680239311,0.05530803,87768.0,87767.0,0.00017094]
[1763680239501,0.01467,87763.0,87755.0,0.3608]
[1763680239704,0.05530803,87756.0,87755.0,0.361528]
[1763680240605,0.05530803,87756.0,87746.0,0.3608]
[1763680240606,0.06452,87747.0,87746.0,0.3608]
[1763680240915,0.06452,87747.0,87713.0,0.03061024]
[1763680240916,0.05311,87714.0,87713.0,0.03061024]
[1763680241100,0.05530803,87714.0,87713.0,0.03471927]
[1763680241300,0.05530803,87714.0,87692.0,0.3608]
[1763680241301,0.05311,87699.0,87692.0,0.3608]
[1763680241501,0.01467,87710.0,87692.0,0.3608]
[1763680241502,0.02883803,87693.0,87692.0,0.3722172]
[1763680241708,0.02883803,87693.0,87692.0,0.3608]
[1763680241709,0.05530803,87693.0,87692.0,0.3608]
[1763680242507,0.41622532,87693.0,87690.0,0.0114174]
[1763680242813,0.0114172,87692.0,87685.0,0.011418]
[1763680243010,0.00219803,87686.0,87685.0,0.063948]
[1763680243312,0.00011729,87693.0,87692.0,0.0639472]
[1763680243514,0.00231532,87693.0,87692.0,0.0639472]
[1763680243713,0.00011729,87693.0,87692.0,0.0639472]
[1763680243911,0.00231532,87693.0,87692.0,0.0639472]
[1763680244116,0.00011729,87693.0,87692.0,0.0639472]
[1763680244303,0.00231532,87693.0,87692.0,0.0639472]
[1763680244703,0.00331532,87693.0,87692.0,0.0639472]
[1763680245413,0.00231532,87693.0,87692.0,0.0639472]